bitfinex/quotes_ETHUSD_20241001
["timestamp","ask_amount","ask_price","bid_price","bid_amount"]
[1727823615628,0.55,2457.9,2457.4,7.79883323]
[1727823615810,4.61865,2457.9,2457.4,3.72950323]
[1727823616425,4.06868,2457.8,2457.3,4.06939]
[1727823616727,4.06895,2457.7,2457.2,3.72950323]
[1727823617090,4.06895,2457.7,2457.2,7.79913323]
[1727823617793,0.23970279,2457.6,2457.2,7.79913323]
[1727823617991,0.23970279,2457.6,2456.9,4.07004]
[1727823617992,4.0694,2457.4,2456.9,4.07004]
[1727823618197,4.51710028,2457.4,2456.9,4.07004]
[1727823618537,4.30883166,2457.3,2456.7,8.1408]
[1727823618824,4.30883166,2457.3,2456.7,4.07035]
[1727823619132,0.23932166,2457.3,2456.7,4.07035]
[1727823619338,0.23932166,2457.3,2456.9,4.07015]
[1727823620037,0.1679,2457.2,2456.4,0.8221]
[1727823620239,4.06993,2457.1,2456.5,4.07075]
[1727823620450,4.23815,2456.9,2456.3,4.0711]
[1727823620758,0.23852364,2456.8,2456.5,4.07081]
[1727823621132,0.23852364,2456.8,2456.5,8.14155]
[1727823621356,0.23852364,2456.8,2456.5,4.07074]
[1727823621695,0.23852364,2456.8,2456.5,4.07072]
[1727823622055,0.23852364,2456.8,2456.7,4.0705]
[1727823622249,0.23852364,2456.8,2456.6,7.80015323]
[1727823622456,3.0,2457.0,2456.6,7.80015323]
[1727823622653,0.23831512,2456.7,2456.5,4.07072]
[1727823622960,4.23777,2457.1,2456.6,7.80016323]
[1727823623121,4.961547,2457.1,2456.6,7.80016323]
[1727823624123,4.07001,2457.0,2456.5,4.07072]
[1727823624336,4.961547,2457.1,2456.5,4.07071]
[1727823624961,9.031477,2457.1,2456.5,8.14141]
[1727823625163,4.961547,2457.1,2456.5,4.0707]
[1727823625354,4.07,2457.0,2456.5,4.0707]
[1727823625529,4.961547,2457.1,2456.6,4.07065]
[1727823625738,4.5662547,2457.0,2456.5,4.0707]
[1727823626237,0.4961547,2457.0,2456.5,8.14144]
[1727823626441,0.4961547,2457.0,2456.6,4.07061]
[1727823626761,0.23834055,2456.9,2456.6,4.07061]
[1727823626951,0.23834055,2456.9,2456.7,8.1408]
[1727823627153,0.1679,2457.1,2456.8,4.07033]
[1727823627343,0.2383609,2457.0,2456.7,4.07039]
[1727823627541,0.2383609,2457.0,2456.6,0.8221]
[1727823627755,0.2383609,2457.0,2456.6,4.89262]
[1727823628051,0.2383609,2457.0,2456.7,4.07047]
[1727823628426,0.2383609,2457.0,2456.6,0.8221]
[1727823628628,0.2383609,2457.0,2456.6,4.89275]
[1727823628941,0.2383609,2457.0,2456.6,4.07065]
[1727823630364,0.2383609,2457.0,2456.7,4.0704]
[1727823630662,0.2383609,2457.0,2456.6,4.07056]
[1727823632528,4.3084509,2457.0,2456.5,4.07075]
[1727823632764,1.39297999,2457.0,2456.6,4.07058]
[1727823632944,0.2383609,2457.0,2456.7,4.0704]
[1727823633131,0.2383609,2457.0,2456.8,4.07033]
[1727823633976,0.2383609,2457.0,2456.7,4.07048]
[1727823635584,0.2383609,2457.0,2456.9,4.07016]
[1727823635738,11.61691,2457.6,2456.8,3.72950323]
[1727823635943,4.06951,2457.3,2456.9,4.07002]
[1727823636272,0.1679,2457.2,2456.9,4.07002]
[1727823636481,0.40615409,2457.2,2456.9,4.07002]
[1727823636678,0.1679,2457.2,2456.9,4.07002]
[1727823636885,0.23836089,2457.1,2456.9,4.07002]
[1727823637572,0.23836089,2457.1,2457.0,4.07]
[1727823637756,0.1679,2457.4,2457.1,4.06973]
[1727823637960,0.23836089,2457.3,2457.1,4.06973]
[1727823638689,0.23836089,2457.3,2457.1,0.8258]
[1727823638858,0.23836089,2457.3,2457.2,7.79917323]
[1727823639061,0.1679,2457.9,2457.5,4.06917]
[1727823639595,4.06877,2457.8,2457.3,4.06949]
[1727823639788,0.1679,2457.9,2457.4,4.0693]
[1727823639789,4.23641,2457.9,2457.4,4.0693]
[1727823640287,4.06868,2457.8,2457.3,8.13891]
[1727823640849,4.23641,2457.9,2457.4,4.06926]
[1727823641047,4.06872,2457.8,2457.3,4.06942]
[1727823641352,5.066898,2457.9,2457.5,4.06916]
[1727823641863,0.23851852,2457.8,2457.5,4.06916]
[1727823643153,0.23851852,2457.8,2457.3,4.06938]
[1727823643352,0.23851852,2457.8,2457.4,4.06932]
[1727823643887,0.23851852,2457.8,2457.5,4.06907]
[1727823644300,4.06842,2458.0,2457.5,4.06907]
[1727823644499,0.23886428,2457.7,2457.5,4.06907]
[1727823644707,4.06842,2458.0,2457.5,4.06907]
[1727823645175,0.23886428,2457.9,2457.5,4.06907]
[1727823645704,0.23886428,2457.9,2457.3,4.89818]
[1727823645705,0.1679,2457.8,2457.3,4.89818]
[1727823645872,0.55,2457.7,2457.2,4.06954]
[1727823646077,4.61891,2457.7,2457.2,4.06954]
[1727823646278,4.30789428,2457.6,2457.1,4.06981]
[1727823646473,5.12977043,2457.5,2457.0,4.06997]
[1727823647070,5.12977043,2457.5,2456.9,4.07003]
[1727823647071,0.23886428,2457.4,2456.9,4.07003]
[1727823647270,0.23886428,2457.4,2457.0,4.06988]
[1727823647719,0.23886428,2457.4,2457.2,4.06966]
[1727823648028,0.23886428,2457.4,2457.0,7.79938323]
[1727823648833,0.23886428,2457.4,2457.0,11.86930323]
[1727823649129,0.23886428,2457.4,2457.0,7.79938323]
[1727823650317,0.23886428,2457.4,2457.0,11.86930323]
[1727823650704,0.23886428,2457.4,2457.1,4.06976]
[1727823651824,0.23886428,2457.4,2457.1,4.89846]
[1727823652641,0.23886428,2457.4,2457.0,7.79938323]
[1727823653220,0.1679,2457.3,2457.0,4.06988]
[1727823653444,0.40674395,2457.3,2457.0,4.06988]
[1727823654137,4.06979,2457.2,2456.7,4.07042]
[1727823654346,0.40674395,2457.3,2456.8,4.07023]
[1727823654649,0.40674395,2457.3,2456.9,4.07008]
[1727823654650,0.1679,2457.3,2456.9,4.07008]
[1727823654819,0.23876259,2457.2,2456.9,4.07008]
[1727823655132,0.591633,2457.3,2456.9,4.07008]
[1727823655335,0.23852363,2457.1,2456.9,4.07008]
[1727823655549,4.23741,2457.3,2456.9,4.07008]
[1727823656039,0.23852363,2457.2,2456.9,4.07008]
[1727823656209,4.23741,2457.3,2456.9,4.07008]
[1727823656417,0.23852363,2457.2,2456.9,4.07008]
[1727823656626,4.23741,2457.3,2456.9,4.07008]
[1727823656842,0.23850329,2457.1,2456.9,4.07008]
[1727823657044,4.23741,2457.3,2456.9,4.07008]
[1727823657234,0.23850329,2457.0,2456.9,4.07008]
[1727823657405,4.23741,2457.3,2456.9,4.07008]
[1727823657613,0.23850329,2457.2,2456.9,4.07008]
[1727823657805,4.23741,2457.3,2456.9,4.07008]
[1727823658006,0.23850329,2457.2,2457.0,7.79939323]
[1727823658286,8.22586708,2457.6,2457.1,4.06983]
[1727823658439,0.2384982,2457.5,2457.2,7.79907323]
[1727823658738,1.01376708,2457.7,2457.4,4.06922]
[1727823658945,0.1679,2457.7,2457.4,4.06922]
[1727823660417,0.1679,2457.7,2457.4,7.79872323]
[1727823661625,4.23676,2457.7,2457.2,7.79903323]
[1727823661829,0.1679,2457.7,2457.3,4.06946]
[1727823663960,0.1679,2457.7,2457.3,5.33917932]
[1727823664132,4.91454708,2457.8,2457.3,5.33917932]
[1727823664133,4.06868,2457.8,2457.4,7.79883323]
[1727823664335,4.91454708,2457.8,2457.4,7.79883323]
[1727823664694,4.06868,2457.8,2457.4,7.79883323]
[1727823664824,4.91454708,2457.8,2457.4,7.79883323]
[1727823665031,4.06868,2457.8,2457.4,7.79883323]
[1727823665625,4.06868,2457.8,2457.4,3.72950323]
[1727823666449,8.13744,2457.8,2457.4,3.72950323]
[1727823667049,4.06901,2457.6,2457.2,7.79903323]
[1727823667256,4.06901,2457.6,2457.2,4.06953]
[1727823667257,0.1679,2457.5,2457.2,4.06953]
[1727823667673,0.1679,2457.5,2457.1,4.06982]
[1727823667674,4.23708,2457.5,2457.1,4.06982]
[1727823667973,4.23708,2457.5,2457.0,4.06999]
[1727823667974,5.08294708,2457.5,2457.0,4.06999]
[1727823668265,5.15227571,2457.5,2457.0,4.06999]
[1727823668623,5.15227571,2457.5,2457.0,4.06992]
[1727823668823,0.1679,2457.5,2457.1,4.06974]
[1727823671526,4.91488708,2457.6,2457.2,4.06966]
[1727823671742,4.91488708,2457.6,2457.0,7.79939323]
[1727823671743,0.1679,2457.7,2457.3,0.8287]
[1727823671943,0.23873208,2457.5,2457.2,4.06957]
[1727823672180,5.08262708,2457.7,2457.2,5.290485]
[1727823672336,0.23873208,2457.4,2457.3,4.0695]
[1727823672537,5.08262708,2457.7,2457.2,9.360055]
[1727823672749,0.23873208,2457.4,2457.2,8.13914]
[1727823672988,5.08262708,2457.7,2457.2,8.13914]
[1727823673378,0.23873208,2457.6,2457.3,4.06948]
[1727823673679,0.23873208,2457.6,2457.4,4.06932]
[1727823674402,0.23873208,2457.6,2457.2,11.86859323]
[1727823674593,0.23873208,2457.6,2457.3,4.0695]
[1727823675258,0.23873208,2457.6,2457.4,4.06933]
[1727823676078,0.23873208,2457.6,2457.4,7.79874323]
[1727823676288,4.91460708,2457.8,2457.3,4.88934]
[1727823676470,0.23873208,2457.5,2457.3,8.95872]
[1727823676761,0.84586708,2457.7,2457.3,4.88934]
[1727823676944,0.23873208,2457.4,2457.2,4.06958]
[1727823677147,0.1679,2457.6,2457.2,4.06958]
[1727823677403,4.91511708,2457.5,2457.0,4.06992]
[1727823677573,0.1679,2457.4,2457.0,4.06992]
[1727823677754,4.23733,2457.4,2456.9,4.07007]
[1727823677938,0.23886936,2457.3,2456.9,4.07007]
[1727823678141,0.23886936,2457.3,2456.9,8.14016]
[1727823678547,1.08473644,2457.3,2456.9,8.14016]
[1727823678752,1.08473644,2457.3,2456.9,4.07007]
[1727823679039,0.23886936,2457.3,2456.9,4.07007]
[1727823679544,1.08473644,2457.3,2456.9,4.07007]
[1727823680083,1.08473644,2457.3,2457.0,4.06999]
[1727823680250,0.23886936,2457.3,2457.0,4.06999]
[1727823680576,0.23886936,2457.3,2456.9,4.07014]
[1727823680738,1.08473644,2457.3,2456.9,4.07014]
[1727823680930,5.15424644,2457.3,2456.9,4.07014]
[1727823681159,0.84586708,2457.2,2456.9,4.07014]
[1727823681866,0.23853888,2457.1,2456.9,4.07014]
[1727823682173,0.23853888,2457.1,2457.0,4.07]
[1727823682481,0.84586708,2457.3,2457.0,4.07]
[1727823682675,0.23853888,2457.1,2457.0,4.07]
[1727823682861,0.84586708,2457.3,2456.9,4.07014]
[1727823683097,0.23853888,2457.1,2456.9,4.07014]
[1727823683298,0.84586708,2457.2,2456.9,4.07014]
[1727823683502,4.07019,2456.9,2456.5,4.0707]
[1727823683799,5.63437708,2456.7,2456.0,4.89156]
[1727823684005,0.84586708,2456.6,2456.4,4.07087]
[1727823684165,1.01376708,2456.7,2456.3,4.07115]
[1727823684362,0.23848802,2456.5,2456.3,4.07115]
[1727823684583,1.01376708,2456.7,2456.3,4.07115]
[1727823684778,0.23848802,2456.4,2456.0,4.89157]
[1727823685000,2.11822227,2456.7,2456.0,4.89157]
[1727823685001,0.1679,2456.3,2456.0,4.07156]
[1727823685168,0.40638802,2456.3,2456.0,4.07156]
[1727823685547,0.78848802,2456.2,2455.6,4.89221]
[1727823685682,0.1679,2456.1,2455.6,4.07221]
[1727823685871,4.7422468,2456.1,2455.6,4.07221]
[1727823686210,0.23848802,2456.0,2455.4,8.62204323]
[1727823686418,0.23848802,2456.0,2455.4,4.89254]
[1727823686767,4.31015802,2456.0,2455.4,8.62204323]
[1727823686962,0.23848802,2456.0,2455.5,4.07243]
[1727823687400,0.7179,2455.9,2455.3,0.63544685]
[1727823687597,4.072,2455.8,2455.3,4.70825685]
[1727823687906,0.23848802,2455.7,2455.4,4.07256]
[1727823688062,4.78988,2455.9,2455.4,8.14511]
[1727823688294,0.23848802,2455.6,2455.4,4.07255]
[1727823688471,4.78988,2455.9,2455.4,4.07255]
[1727823688706,0.23848802,2455.5,2455.4,4.07255]
[1727823688912,8.86184,2455.9,2455.4,4.07255]
[1727823689220,0.23848802,2455.5,2455.2,7.80232323]
[1727823689383,4.072,2455.8,2455.2,7.80232323]
[1727823689578,0.23848802,2455.4,2455.2,11.87521323]
[1727823689880,0.23848802,2455.3,2455.2,7.80232323]
[1727823690212,4.072,2455.8,2455.2,7.80232323]
[1727823690398,0.23848802,2455.3,2455.2,7.80232323]
[1727823690568,0.1679,2455.6,2455.2,7.80232323]
[1727823690771,0.23848802,2455.3,2455.1,8.14619]
[1727823690966,4.24023,2455.6,2455.1,8.14619]
[1727823691170,0.23677317,2455.2,2455.1,4.07306]
[1727823691362,4.24023,2455.6,2455.1,4.07306]
[1727823691866,0.23677317,2455.5,2455.1,4.07306]
[1727823692137,0.23677317,2455.5,2455.2,4.07297]
[1727823692274,0.23677317,2455.5,2455.3,4.07281]
[1727823692468,0.23677317,2455.5,2455.2,4.07297]
[1727823692718,0.23677317,2455.5,2455.2,4.07289]
[1727823693336,0.23677317,2455.5,2455.3,4.07278]
[1727823693713,0.23677317,2455.5,2455.2,8.14578]
[1727823694666,0.23677317,2455.5,2455.3,4.07271]
[1727823696257,0.23677317,2455.5,2455.2,8.98992155]
[1727823696444,0.23677317,2455.5,2455.3,4.07282]
[1727823696938,0.23677317,2455.5,2455.2,8.98992155]
[1727823697102,0.23677317,2455.5,2455.2,4.07289]
[1727823697442,0.23677317,2455.5,2455.2,4.07288]
[1727823698935,0.55,2455.3,2454.7,4.07375]
[1727823699132,4.24088,2455.2,2454.7,4.07375]
[1727823699493,0.23661529,2455.1,2454.7,4.07375]
[1727823700252,0.23661529,2455.1,2454.6,4.87397]
[1727823700542,4.07416,2454.5,2454.3,0.1229916]
[1727823700750,4.24221,2454.4,2454.3,0.1229916]
[1727823700955,0.40438284,2454.4,2454.3,0.1229916]
[1727823701312,4.47869284,2454.4,2454.3,0.1229916]
[1727823702011,0.40438284,2454.4,2454.3,0.1229916]
[1727823702207,0.95438284,2454.4,2454.3,0.1229916]
[1727823702621,5.53154712,2454.4,2454.3,0.1229916]
[1727823702820,8.53154712,2454.4,2454.3,0.1229916]
[1727823709741,7.98154712,2454.4,2454.3,0.1229916]
[1727823709945,0.40438284,2454.4,2454.3,0.1229916]
[1727823711236,3.95438284,2454.4,2454.3,0.1229916]
[1727823712459,3.78648284,2454.4,2454.3,0.1229916]
[1727823713277,0.23648284,2454.4,2454.3,0.1229916]
[1727823713576,4.07371,2454.8,2454.3,4.1974716]
[1727823713577,7.07374,2454.8,2454.3,4.1974716]
[1727823714091,0.23536182,2454.7,2454.3,4.1974716]
[1727823714390,4.07398,2454.6,2454.3,0.1229916]
[1727823714555,0.407398,2454.5,2454.3,0.1229916]
[1727823714930,0.23543828,2454.4,2454.3,0.1229916]
[1727823715155,4.07398,2454.6,2454.3,0.1229916]
[1727823715369,0.23543828,2454.4,2454.3,0.1229916]
[1727823715578,4.07398,2454.6,2454.3,0.1229916]
[1727823715760,0.23543828,2454.4,2454.3,0.1229916]
[1727823716266,4.07398,2454.6,2454.3,0.1229916]
[1727823716466,0.23543828,2454.4,2454.3,0.1229916]
[1727823716787,4.07415,2454.5,2454.3,0.1229916]
[1727823716939,0.23536691,2454.4,2454.3,0.1229916]
[1727823717485,3.0,2454.6,2454.3,0.1229916]
[1727823717642,0.23536691,2454.4,2454.3,0.1229916]
[1727823717838,3.0,2454.6,2454.3,0.1229916]
[1727823718072,0.23536691,2454.5,2454.3,0.1229916]
[1727823719443,4.30952691,2454.5,2454.3,0.1229916]
[1727823720238,0.23536691,2454.5,2454.3,0.1229916]
[1727823720655,0.55,2454.6,2454.3,0.1229916]
[1727823720851,0.2353924,2454.5,2454.3,0.1229916]
[1727823721387,0.2353924,2454.5,2454.3,4.67973499]
[1727823721556,0.2353924,2454.5,2454.4,4.07431]
[1727823721751,0.55,2454.8,2454.5,4.07411]
[1727823721950,0.55,2454.8,2454.4,8.9043]
[1727823722174,0.55,2454.8,2454.4,4.82999]
[1727823722587,0.55,2454.8,2454.4,0.7558]
[1727823722892,0.55,2454.8,2454.3,0.95023176]
[1727823722893,4.07389,2454.7,2454.3,0.1229916]
[1727823723556,0.55,2454.6,2454.3,0.1229916]
[1727823723746,4.62399,2454.6,2454.3,0.1229916]
[1727823724191,4.07422,2454.5,2454.3,0.1229916]
[1727823724409,7.79221,2454.4,2454.3,0.1229916]
[1727823724683,9.033853,2454.4,2454.3,0.1229916]
[1727823731921,9.26937286,2454.4,2454.3,0.1229916]
[1727823735614,8.71937286,2454.4,2454.3,0.1229916]
[1727823735813,7.47772986,2454.4,2454.3,0.1229916]
[1727823737028,8.02772986,2454.4,2454.3,0.1229916]
[1727823737576,7.85982986,2454.4,2454.3,0.1229916]
[1727823738213,7.30982986,2454.4,2454.3,0.1229916]
[1727823739773,7.85982986,2454.4,2454.3,0.1229916]
[1727823742692,4.85982986,2454.4,2454.3,0.1229916]
[1727823743895,4.30982986,2454.4,2454.3,0.1229916]
[1727823746032,13.65297193,2454.4,2454.3,0.1229916]
[1727823746249,15.54780385,2454.4,2454.3,0.1229916]
[1727823746534,15.54780385,2454.4,2453.3,0.8249]
[1727823746535,7.62547,2453.7,2453.3,0.8249]
[1727823746680,8.47232503,2453.7,2453.3,0.8249]
[1727823746875,10.47896701,2453.7,2453.3,0.8249]
[1727823747080,9.63211198,2453.7,2453.3,0.8249]
[1727823747326,10.47873285,2453.7,2452.8,4.07696]
[1727823747532,10.90239452,2453.7,2453.1,0.8249]
[1727823747699,10.47873233,2453.7,2453.1,0.8249]
[1727823748088,10.90239452,2453.7,2453.1,0.8249]
[1727823748323,9.63211198,2453.7,2453.1,0.8249]
[1727823748714,10.4785511,2453.7,2453.1,0.8249]
[1727823748900,9.63211198,2453.7,2453.1,0.8249]
[1727823749305,10.47851344,2453.7,2453.1,0.8249]
[1727823749616,10.90239452,2453.7,2453.1,0.8249]
[1727823750230,10.4780344,2453.7,2453.1,0.8249]
[1727823751340,3.7851069,2453.7,2453.3,4.07613]
[1727823751545,0.2351069,2453.7,2453.6,0.7692]
[1727823751691,3.0,2453.8,2453.6,0.7692]
[1727823751893,0.23481615,2453.7,2453.6,4.84476]
[1727823752217,3.3338632,2454.4,2453.9,0.7581]
[1727823752218,4.92035242,2454.4,2453.9,0.7581]
[1727823752537,4.92035242,2454.4,2454.0,4.07496]
[1727823752538,4.07434,2454.4,2454.0,4.07496]
[1727823753461,4.07434,2454.4,2453.9,0.7581]
[1727823754007,3.0,2454.4,2454.0,4.07497]
[1727823754202,4.07422,2454.5,2454.0,4.07497]
[1727823754417,4.07422,2454.5,2454.0,4.965701]
[1727823754652,4.07406,2454.6,2454.2,4.07463]
[1727823754835,4.07406,2454.6,2454.1,0.7581]
[1727823755153,4.07415,2454.5,2454.1,0.7581]
[1727823756023,4.07415,2454.5,2454.1,4.8329]
[1727823756224,4.07415,2454.5,2454.1,6.18571042]
[1727823756422,0.84592242,2454.7,2454.2,4.07453]
[1727823756637,4.91977242,2454.7,2454.2,4.07453]
[1727823756805,4.91977242,2454.7,2454.3,4.07445]
[1727823756806,0.84592242,2454.7,2454.3,4.07445]
[1727823757167,4.074,2454.6,2454.2,4.07453]
[1727823758369,4.074,2454.6,2454.1,2.11091042]
[1727823759463,4.91969242,2454.8,2454.3,4.07445]
[1727823759680,8.99347242,2454.8,2454.3,4.07445]
[1727823760972,4.91969242,2454.8,2454.3,4.07445]
[1727823761281,4.91969242,2454.8,2454.3,4.07448]
[1727823761432,8.14755,2454.8,2454.3,4.07448]
[1727823761639,4.07383,2454.7,2454.3,4.07448]
[1727823761837,0.23536691,2454.7,2454.3,4.07448]
[1727823762189,4.07377,2454.8,2454.3,4.07448]
[1727823762385,0.2353975,2454.6,2454.3,4.07448]
[1727823762535,4.07386,2454.7,2454.2,4.07463]
[1727823762736,0.2353975,2454.5,2454.2,4.07463]
[1727823763072,4.07386,2454.7,2454.2,4.07463]
[1727823763230,0.2353975,2454.4,2454.2,4.07463]
[1727823763432,4.07386,2454.7,2454.2,4.07463]
[1727823763633,0.2353975,2454.3,2454.2,4.07463]
[1727823763872,4.07386,2454.7,2454.2,4.07463]
[1727823764075,0.2353975,2454.3,2454.2,4.07463]
[1727823764236,8.99343242,2454.8,2454.3,4.07447]
[1727823764442,8.14751,2454.8,2454.3,4.07447]
[1727823764660,4.07394,2454.7,2454.2,4.07463]
[1727823766851,4.07408,2454.6,2454.1,0.7581]
[1727823767093,4.24198,2454.6,2454.1,0.7581]
[1727823767461,4.62447,2454.4,2454.1,0.7581]
[1727823767662,0.55,2454.4,2454.1,0.7581]
[1727823768444,4.62433,2454.4,2454.1,0.7581]
[1727823768596,5.59556724,2454.4,2454.1,0.7581]
[1727823769651,4.074,2454.6,2454.2,4.07462]
[1727823769858,0.84592242,2454.7,2454.1,0.7581]
[1727823770094,7.91966242,2454.8,2454.2,7.80409323]
[1727823770295,7.91966242,2454.8,2454.4,4.07422]
[1727823770476,10.04336887,2454.8,2454.4,4.07422]
[1727823770793,10.04336887,2454.8,2454.2,7.80402323]
[1727823770999,10.04336887,2454.8,2454.2,4.07448]
[1727823771000,4.07382,2454.7,2454.2,4.07448]
[1727823771159,10.04336887,2454.8,2454.3,4.07446]
[1727823771362,9.19744645,2454.8,2454.3,4.07446]
[1727823771698,9.19744645,2454.8,2454.4,4.0743]
[1727823773198,9.19744645,2454.8,2454.4,4.07429]
[1727823773622,4.91935242,2455.0,2454.6,4.07396]
[1727823773763,8.14686,2455.0,2454.5,4.90324]
[1727823773963,4.07343,2455.0,2454.5,4.90324]
[1727823774789,4.07343,2455.0,2454.6,4.07396]
[1727823775481,4.07341,2455.0,2454.6,4.07396]
[1727823776690,0.23560138,2454.9,2454.6,4.07396]
[1727823777088,0.23560138,2454.9,2454.5,0.8291]
[1727823777330,0.23560138,2454.9,2454.5,4.90323]
[1727823777729,4.07366,2454.8,2454.5,0.8291]
[1727823778038,4.07395,2454.7,2453.9,4.07513]
[1727823778337,4.07456,2454.3,2454.0,0.8267]
[1727823778761,4.0742,2454.5,2454.0,0.8267]
[1727823778896,0.2356065,2454.2,2454.0,0.8267]
[1727823779097,4.58300224,2454.5,2454.0,0.8267]
[1727823779294,4.3099265,2454.4,2454.0,0.8267]
[1727823780533,0.2356065,2454.4,2454.0,4.90153]
[1727823780840,0.2356065,2454.4,2454.2,3.72950323]
[1727823780841,4.3099265,2454.4,2454.2,3.72950323]
[1727823780991,4.75770915,2454.4,2453.9,4.90171]
[1727823781195,8.3843165,2454.4,2453.9,4.90171]
[1727823781396,4.07465,2454.2,2453.9,0.8267]
[1727823781599,4.07465,2454.2,2453.7,0.8267]
[1727823781600,4.0752,2453.9,2453.7,0.8267]
[1727823781808,4.0752,2453.9,2453.6,0.0111]
[1727823781809,4.07531,2453.8,2453.6,0.0111]
[1727823782007,4.31086042,2453.8,2453.6,0.0111]
[1727823782299,7.62547,2453.7,2453.6,0.0111]
[1727823782500,7.86095924,2453.7,2453.6,0.0111]
[1727823783242,8.02885924,2453.7,2453.6,0.0111]
[1727823784959,7.31095924,2453.7,2453.6,0.0111]
[1727823785453,8.02885924,2453.7,2453.6,0.0111]
[1727823785630,9.53643726,2453.7,2453.6,0.0111]
[1727823787248,4.74306726,2453.7,2453.6,0.0111]
[1727823787472,4.31095924,2453.7,2453.6,0.0111]
[1727823787668,7.31095924,2453.7,2453.6,0.0111]
[1727823793332,8.02885924,2453.7,2453.6,0.0111]
[1727823793577,7.86095924,2453.7,2453.6,0.0111]
[1727823793771,9.15691677,2453.7,2453.6,0.0111]
[1727823793926,8.60691677,2453.7,2453.6,0.0111]
[1727823794126,9.15691677,2453.7,2453.6,0.0111]
[1727823794383,4.53144677,2453.7,2453.6,0.0111]
[1727823794542,0.23548924,2453.7,2453.6,0.0111]
[1727823794738,0.84592242,2454.1,2453.6,4.08674]
[1727823794739,4.07481,2454.1,2453.6,4.08674]
[1727823794965,0.23443364,2453.7,2453.6,4.08674]
[1727823795148,4.07481,2454.1,2453.6,4.08674]
[1727823795345,0.23443364,2453.7,2453.6,4.84554]
[1727823795546,4.07481,2454.1,2453.6,6.11062232]
[1727823795742,4.07477,2454.2,2453.6,4.84554]
[1727823795743,0.23443874,2453.7,2453.6,4.84554]
[1727823795985,4.07485,2454.1,2453.6,4.84554]
[1727823796287,0.23443874,2453.7,2453.6,4.84554]
[1727823796793,4.07485,2454.1,2453.6,4.84554]
[1727823797295,0.23443874,2454.0,2453.6,4.84554]
[1727823799091,4.30948874,2454.0,2453.6,0.7699]
[1727823800646,0.23443874,2454.0,2453.6,4.84553]
[1727823801947,4.30941874,2454.0,2453.6,0.7699]
[1727823802361,5.14784261,2454.0,2453.6,0.7699]
[1727823802704,4.07532,2453.8,2453.6,0.7699]
[1727823802922,4.07532,2453.8,2453.6,0.0111]
[1727823802923,7.07547,2453.7,2453.6,0.0111]
[1727823803225,8.02818623,2453.7,2453.6,0.0111]
[1727823803516,9.61148718,2453.7,2453.6,0.0111]
[1727823805894,3.78481623,2453.7,2453.6,0.0111]
[1727823806137,0.23481623,2453.7,2453.6,0.0111]
[1727823806367,0.84592242,2454.2,2453.7,4.07533]
[1727823806368,4.07472,2454.2,2453.7,4.07533]
[1727823806691,4.07472,2454.2,2453.8,4.8341]
[1727823806872,0.23448974,2454.1,2453.8,4.8341]
[1727823807080,4.30938974,2454.1,2453.8,0.7588]
[1727823807277,4.07525,2453.9,2453.6,0.0111]
[1727823807614,0.23479073,2453.8,2453.6,0.0111]
[1727823808498,4.07498,2454.0,2453.6,0.0111]
[1727823808703,8.08821242,2454.4,2453.6,4.90542]
[1727823808704,0.23479073,2453.7,2453.6,4.90542]
[1727823809016,7.07462,2454.3,2453.8,4.07528]
[1727823809227,3.0,2454.3,2453.9,4.07506]
[1727823809366,3.0,2454.3,2454.0,0.8187]
[1727823809999,4.62489,2454.1,2453.7,0.8187]
[1727823810198,7.782019,2454.3,2453.7,0.8187]
[1727823810400,7.782019,2454.3,2453.8,4.07519]
[1727823810401,7.07458,2454.3,2453.8,4.07519]
[1727823810650,7.07433,2454.4,2453.9,4.07504]
[1727823810849,7.07433,2454.4,2454.0,4.07497]
[1727823810995,1.69371006,2454.8,2454.4,4.07429]
[1727823810996,0.84592242,2454.8,2454.4,4.07429]
[1727823811204,11.45357,2454.9,2454.4,4.07429]
[1727823811205,4.07357,2454.9,2454.4,4.07429]
[1727823811428,4.07328,2455.1,2454.7,0.8187]
[1727823811756,4.07335,2455.0,2454.7,0.8187]
[1727823812096,4.07328,2455.1,2454.7,0.8187]
[1727823812296,5.66846086,2455.1,2454.7,0.8187]
[1727823812735,4.07333,2455.0,2454.7,0.8187]
[1727823812938,9.74175086,2455.1,2454.7,0.8187]
[1727823813142,4.07332,2455.0,2454.7,0.8187]
[1727823813297,5.66846086,2455.1,2454.7,0.8187]
[1727823814038,4.07346,2455.0,2454.7,0.8187]
[1727823814337,5.66846086,2455.1,2454.7,0.8187]
[1727823814640,9.74175086,2455.1,2454.7,0.8187]
[1727823815043,4.07337,2455.0,2454.7,0.8187]
[1727823818020,5.66846086,2455.1,2454.7,0.8187]
[1727823818708,4.07334,2455.0,2454.7,0.8187]
[1727823820050,4.07366,2454.8,2454.3,0.8187]
[1727823820214,4.07409,2454.6,2454.1,0.8187]
[1727823820609,4.07415,2454.5,2454.1,0.8187]
[1727823821846,0.2357645,2454.4,2454.1,4.89349]
[1727823822144,4.3100745,2454.4,2454.1,0.8187]
[1727823822306,1.09097695,2454.4,2454.1,0.8187]
[1727823822509,0.2357645,2454.4,2454.1,0.8187]
[1727823823634,3.0,2454.6,2454.2,4.07464]
[1727823823839,0.2357645,2454.3,2454.2,4.07464]
[1727823824020,3.0,2454.6,2454.2,4.07464]
[1727823824227,0.23556062,2454.3,2454.2,4.07464]
[1727823824537,3.0,2454.6,2454.2,4.07464]
[1727823825039,0.23562179,2454.5,2454.2,4.07464]
[1727823826051,0.23562179,2454.5,2454.3,4.07442]
[1727823826353,4.0739,2454.7,2454.3,4.07442]
[1727823826651,0.23563708,2454.6,2454.2,4.07464]
[1727823827056,0.23563708,2454.6,2454.3,4.07447]
[1727823827347,0.23563708,2454.6,2454.4,0.803]
[1727823827650,4.0737,2454.8,2454.4,0.803]
[1727823827872,0.23563708,2454.5,2454.2,0.803]
[1727823828061,4.07406,2454.6,2454.2,0.803]
[1727823828219,0.23560139,2454.4,2454.2,0.803]
[1727823828419,4.07406,2454.6,2454.2,4.87763]
[1727823828616,0.23560649,2454.3,2454.2,4.87763]